Cogmind - Beta 9.1 @@@ ROGUE MODE // 2019.11.05 @ 08:29:46 Player: Alexbot Result: Destroyed by S-10 Pest with Light Assault Rifle Performance ------------- Evolutions (0) 0 Regions Visited (1) 200 Robots Destroyed (6) 30 Value Destroyed (66) 66 Prototype IDs (0) 0 Alien Tech Used (0) 0 Bonus (0) 0 TOTAL SCORE: 296 Bonus ------- None Cogmind --------- Core Integrity 0/250 Matter 247/300 Energy 93/100 System Corruption 0% Temperature Cool (0) Location -10/Materials Parts ------- Power (1) Propulsion (2) Compact Wheel Compact Wheel Utility (2) Small Storage Unit Small Storage Unit Weapon (2) Inventory (8) Hacking Suite Peak State ------------ Power Light Ion Engine Propulsion Light Treads Light Treads Utility Small Storage Unit Small Storage Unit Weapon Medium Laser Medium Laser Inventory Ion Engine Compact Wheel Compact Wheel EM Pulse Gun Light Assault Rifle [Rating: 7] Favorites ----------- Power Light Ion Engine Engine Light Ion Engine Propulsion Light Treads Treads Light Treads Wheel Compact Wheel Utility Small Storage Unit Storage Small Storage Unit Weapon Medium Laser Energy Gun Medium Laser Ballistic Gun Light Assault Rifle Build | -11 -10 ------- Run | Scr Mat Slots Evolved . | . . Power . | . . Propulsion . | . . Utility . | . . Weapon . | . . Parts Attached 16 | 6 10 Power 2 | 1 1 Engine 2 | 1 1 Core . | . . Reactor . | . . Propulsion 6 | 2 4 Treads 3 | 2 1 Leg . | . . Wheel 3 | . 3 Hover . | . . Flight . | . . Utility 2 | 1 1 Device . | . . Storage 2 | 1 1 Processor . | . . Hackware . | . . Protection . | . . Artifact . | . . Weapon 6 | 2 4 Energy Gun 5 | 2 3 Energy Cannon . | . . Ballistic Gun 1 | . 1 Ballistic Cannon . | . . Launcher . | . . Special Weapon . | . . Impact Weapon . | . . Slashing Weapon . | . . Piercing Weapon . | . . Special Melee Weapon . | . . Unidentified Prototypes . | . . Parts Lost 9 | . 9 Power 2 | . 2 Propulsion 3 | . 3 Utility . | . . Weapon 4 | . 4 Highest Loss Streak 8 | . 8 Average Slot Usage (%) 83 | . 83 Engine 10 | . 10 Treads 21 | . 21 Wheel 3 | . 3 Storage 24 | . 24 Energy Gun 20 | . 20 Ballistic Gun 2 | . 2 Naked Turns . | . . Heaviest Build 16 | 11 16 Greatest Support 40 | 40 40 Greatest Overweight (x) 4 | 2 4 Average Overweight (x) . | . . Largest Inventory Capacity 8 | 6 8 Average Capacity 6 | 5 7 Most Carried 7 | 4 7 Average Carried 4 | 2 4 Final Capacity 8 | 6 8 Final Carried 4 | 4 1 Class Distribution -------------------- 100% | Mutant Dominant Class ---------------- Mutant | -10/Materials Resources | -11 -10 ----------- Run | Scr Mat Matter Collected 261 | 232 29 Remotely . | . . Salvage Created 91 | . 91 Parts 8 | . 8 Haulers Intercepted . | . . Recyclers Shooed . | . . Parts Field Recycled . | . . Retrieved Matter . | . . Parts Self-Destructed . | . . Prevented . | . . Kills | -11 -10 ------- Run | Scr Mat Combat Hostiles Destroyed 5 | . 5 Guns 5 | . 5 Classes Destroyed 2 | . 2 Operator 1 | . 1 Swarmer 5 | . 5 Best Kill Streak 3 | . 3 Combat Bots Only 3 | . 3 Max Kills in Single Turn 1 | . 1 Gunslinging . | . . Exploded . | . . Melee . | . . Uniques/NPCs Destroyed . | . . Combat | -11 -10 -------- Run | Scr Mat Damage Taken 1028 | . 1028 Core 257 | . 257 Absorbed by Shields . | . . Core Remaining (%) 100 | 100 . Volleys Fired 32 | . 32 Largest 2 | . 2 Hottest 100 | . 100 Shots Fired 42 | . 42 Gun 42 | . 42 Cannon . | . . Launcher . | . . Special . | . . Kinetic 5 | . 5 Thermal 33 | . 33 Explosive . | . . Electromagnetic 4 | . 4 Robot Hit Streak 5 | . 5 Robot Miss Streak 4 | . 4 Penetration Max . | . . Secondary Targets 2 | . 2 Max Gunslinging Chain 1 | . 1 Shots Hit Robots 26 | . 26 Core Hits 11 | . 11 Critical Hits . | . . Critical Kills . | . . Critical Parts Destroyed . | . . Melee Attacks . | . . Impact . | . . Slashing . | . . Piercing . | . . Sneak Attacks . | . . Combat Hostiles . | . . Follow-up Attacks . | . . Damage Inflicted 306 | . 306 Guns 304 | . 304 Cannons . | . . Explosions . | . . Melee . | . . Ramming 2 | . 2 Kinetic 30 | . 30 Thermal 250 | . 250 Explosive . | . . Electromagnetic 24 | . 24 Impact . | . . Slashing . | . . Piercing . | . . Highest Corruption . | . . Average Corruption . | . . Corruption Purged . | . . Overload Shots . | . . Overflow Damage . | . . Projectiles . | . . Explosions . | . . Melee . | . . Knockbacks . | . . Impact . | . . Kinetic . | . . Secondary . | . . Self-Inflicted Damage . | . . Shots . | . . Rammed 2 | . 2 Targets Rammed 2 | . 2 Kicked . | . . Crushed . | . . Highest Temperature 309 | . 309 Average Temperature 129 | . 129 Received Heat Transfer 432 | . 432 Effects 2 | . 2 Energy Bleed 1 | . 1 Interference 1 | . 1 Siege Activations . | . . Robots Corrupted . | . . Combat Hostiles . | . . Parts Fried . | . . Impact Corruptions . | . . Robots Melted . | . . Combat Hostiles . | . . Parts Melted 1 | . 1 Heat Transferred 740 | . 740 Parts Sabotaged . | . . Parts Stolen . | . . Parts Stripped . | . . Power Chain Reactions . | . . Missiles Intercepted . | . . Alert | -11 -10 ------- Run | Scr Mat Peak Influence 120 | . 120 Average Influence 28 | . 37 Maximum Alert Level . | . . Low Security (%) 100 | . . Level 1 . | . . Level 2 . | . . Level 3 . | . . Level 4 . | . . Level 5 . | . . High Security . | . . Max Security . | . . Squads Dispatched 3 | . 3 Investigation 1 | . 1 Extermination . | . . Reinforcement 2 | . 2 Assault . | . . Garrison . | . . Intercept . | . . Construction Impeded . | . . Haulers Reinforced . | . . Stealth | -11 -10 --------- Run | Scr Mat Distress Signals . | . . Communications Jammed . | . . Distress Signals . | . . Times Spotted 19 | . 19 Peak Tracking Total 10 | . 10 Tactical Retreats 2 | . 2 Traps | -11 -10 ------- Run | Scr Mat Traps Triggered 2 | . 2 Indirectly . | . . Trap Hack Attempts . | . . Triggered . | . . Disarmed . | . . Reprogrammed . | . . Reused . | . . Traps Extracted . | . . Installed . | . . Triggered . | . . Machines | -11 -10 ---------- Run | Scr Mat Machines Disabled . | . . Max in Single Turn . | . . Machines Sabotaged . | . . Garrisons Compromised . | . . Overloaded Fab Kills . | . . Fab Network Shutdowns . | . . Hacking | -11 -10 --------- Run | Scr Mat Machines Accessed . | . . Terminals . | . . Fabricators . | . . Repair Stations . | . . Recycling Units . | . . Scanalyzers . | . . Garrison Access . | . . Total Hacks . | . . Successful . | . . Failed . | . . Catastrophic . | . . Database Lockouts . | . . Manual . | . . Terminals . | . . Fabricators . | . . Repair Stations . | . . Recycling Units . | . . Scanalyzers . | . . Garrison Access . | . . Terminal Hacks . | . . Fabricator Hacks . | . . Repair Station Hacks . | . . Recycling Unit Hacks . | . . Scanalyzer . | . . Garrison Access Hacks . | . . Unauthorized Hacks . | . . Terminals . | . . Fabricators . | . . Repair Stations . | . . Recycling Units . | . . Scanalyzers . | . . Garrison Access . | . . Data Cores Recovered . | . . Used . | . . Hacking Detections . | . . Full Trace Events . | . . Feedback Events . | . . Feedback Blocked . | . . Robot Schematics Acquired . | . . Robots Built . | . . Matter . | . . Time . | . . Total Robot Build Rating . | . . Part Schematics Acquired . | . . Parts Built . | . . Matter . | . . Time . | . . Total Part Build Rating . | . . Parts Repaired . | . . Time . | . . Parts Recycled . | . . Recycled Matter . | . . Retrieved Matter . | . . Retrieved Components . | . . Parts Scanalyzed . | . . Part Schematics Acquired . | . . Parts Damaged . | . . Bothacking | -11 -10 ------------ Run | Scr Mat Used RIF Installer . | . . Robots Hacked . | . . Non-combat . | . . Combat . | . . Robot Hacks Applied . | . . Relay Couplers Released . | . . Robots Rewired . | . . Allies Hacked . | . . Hacks Repelled . | . . Allies | -11 -10 -------- Run | Scr Mat Total Allies . | . . Largest Group . | . . Highest-Rated Group . | . . Highest-Rated Ally . | . . Total Orders . | . . Ally Attacks . | . . Total Damage . | . . Kills . | . . Allies Corrupted . | . . Allies Melted . | . . Intel | -11 -10 ------- Run | Scr Mat Robot Analysis Total . | . . Derelict Logs Recovered . | . . Drone Launches . | . . Drone Recoveries . | . . Exploration | -11 -10 ------------- Run | Scr Mat Turns Passed 331 | 81 250 Spaces Moved 152 | 48 104 Core 15 | 9 6 Treads 122 | 39 83 Legs . | . . Wheels 15 | . 15 Hover . | . . Flight . | . . Fastest Speed 50 | 50 100 Average Speed 149 | 144 151 Slowest Speed 250 | 160 250 Overloaded Moves . | . . Propulsion Burnouts . | . . Robots Hopped . | . . Cave-ins Triggered . | . . Exploration Rate (%) 16 | 4 29 Regions Visited 1 Branch Regions . Pre-discovered Areas . | . . Known Exits Taken . | . . Unknown Exits Taken 1 | 1 . Scrap Searched . | . . Spaces Dug . | . . Terrain Destroyed . | . . Melee . | . . Projectile . | . . AOE . | . . Actions | -11 -10 --------- Run | Scr Mat Total 210 | 57 153 Wait 1 | . 1 Move 151 | 47 104 Hop . | . . Pick Up 8 | 4 4 Fast Attach 8 | 6 2 Attach 7 | . 7 Detach . | . . Swap 1 | . 1 Drop . | . . Fire 32 | . 32 Melee . | . . Ram 1 | . 1 Kick . | . . Crush 1 | . 1 Escape Stasis . | . . Rewire . | . . Trap . | . . Miscellaneous . | . . Route ------- -11/Scrapyard -10/Materials (discovered 1 exit: [*Min]) History --------- Turn | Location | Event 14 | -11/Scrapyard | Discovered new exit (range 14) 82 | -11/Scrapyard | Entered Materials 283 | -10/Materials | Core integrity fell below 50% 317 | -10/Materials | Core integrity fell below 20% 319 | -10/Materials | Lost 8 parts (2p3n3w) 328 | -10/Materials | Build established: Mutant 330 | -10/Materials | Discovered new exit (range 10) 332 | -10/Materials | Destroyed by S-10 Pest with Light Assault Rifle Last Messages --------------- 00263_ Slammed into G-34 Mercenary. 00270_ Lgt. Treads destroyed. 00273_ K-01 Serf collects debris. 00273_ EM Pulse Gun destroyed. 00279_ Lgt. Treads destroyed. 00283_ Com. Wheel destroyed. 00286_ Ion Engine destroyed. 00288_ Lgt. Assault Rifle destroyed. 00299_ S-10 Pest destroyed. 00317_ R-06 Scavenger collects Lgt. Ion Engine. 00320_ S-10 Pest destroyed. 00324_ G-34 Mercenary heat short circuits Aluminum Leg. 00324_ Med. Laser destroyed. 00324_ Slammed into S-10 Pest. 00324_ Destabilizing: Short circuit. 00324_ Com. Wheel permanently disabled. 00325_ Acquired 11 matter. 00325_ G-34 Mercenary heat short circuits Ion Engine. 00326_ G-34 Mercenary heat damages Aluminum Leg. 00330_ EXIT=FOUND Map ----- +----------------------------------------------------+ | ?????????????????????????????????????????????????? | | ????????????????? ?????????????????????????????? | | ????????????????? #????????????????????????????? | | ????????????????? #????????????????????????????? | | ????????????????# #????????????????????????????? | | ????????????????# #????????????????????????????? | | ????????????????# #????????????????????????????? | | ######??????????# #????????????????????????????? | | #??????????# ####?????????????????????????? | | #??????????# ??????????????????????????? | | """ #??????????# ???????????????????????????? | | """ #??????????# ????????????????????????????? | | """ #??????????# #????????????????????????????? | | #??????????# #??###########???????????????? | | #??????????# #??# #???????????????? | | = %#????????### #??# """ #???????????????? | | ####+########## #??# "T" #???????????????? | | ^ #### """ +???????????????? | | ^ %/ """ #???????????????? | | "" ! #### """ #???????????????? | | "T^ ####### #??# """ #???????????????? | | "" #?????#######??# ] #???????????????? | | #????######????#####s#####???????????????? | | ##???# ##### #?????????????????? | | #?????????????????? | | < @ #?????????????????? | | % k #?????????????????? | | ######### ## ##### #?????????????????? | | ????????? ## "|"|"?????## ##?????????????????? | | ????????? ?#""|"???????? #??????????????????? | | ?????????? ?????????????? +??????????????????? | | ?????????? ?????????????? #??????????????????? | | ?????????????????????????? #??????????????????? | | ????????????????????????? ###??????????????????? | | ????????????????????????? #????????????????????? | | ?????????????????????????## #????????????????????? | | ??????????????????????????? #????????????????????? | | ??????????????????????????? ?????????????????????? | | ??????????????????????????? ?????????????????????? | | ?????????????????????????????????????????????????? | | ?????????????????????????????????????????????????? | | ?????????????????????????????????????????????????? | | ?????????????????????????????????????????????????? | | ?????????????????????????????????????????????????? | | ?????????????????????????????????????????????????? | | ?????????????????????????????????????????????????? | | ?????????????????????????????????????????????????? | | ?????????????????????????????????????????????????? | | ?????????????????????????????????????????????????? | | ?????????????????????????????????????????????????? | +----------------------------------------------------+ Best States ------------- Heat Dissipation 25 Energy Generation 10 Energy Capacity 250 Matter Stores 272 Matter Capacity 300 Sight Range 16 Terrain Scan Density 10 Evasion (%) 40 Recoil Reduction 2 Item Schematics ----------------- None Robot Schematics ------------------ None Fabricated ------------ Nothing Alien Tech Used ----------------- None Achievements -------------- None Challenges ------------ None Game ------ Seed DirtyGyrokineticMallet Manual? 0 Play Time 00:04:40 Cumulative 687.1 hours Start 2019.11.05 @ 08:26:22 End 2019.11.05 @ 08:29:46 Sessions 1 Manual Loads 0 Difficulty Rogue Special Mode None Game No. 186 Rogue 186 Adventurer 0 Explorer 0 Win Type - Total 31 Types 23/0/2/3/2/0/1 Lore% 96 Gallery% 97 Achievement% 91 Wizard Run 0 Options --------- ASCII 0 Keyboard 1 Movement Numpad Keybinds 0 Fullscreen 1 Font 18/SmallcapsGlow Map View 76x50 Tactical HUD 1 Map Filters NONE Filters NONE Steam 1 RUN: 9e6b4f9e-613d-4a17-a2f2-d6283ea78d0c